[Event "*** MasterClass Titled Tuesday Blitz"]
[Site "Chess.com"]
[Date "2017.12.05"]
[Round "1"]
[White "Blitzstream"]
[Black "ChessChronicles123"]
[Result "1-0"]
[WhiteElo "2508"]
[BlackElo "1921"]
[TimeControl "180+2"]
[EndTime "14:19:47 PST"]
[Termination "Blitzstream won by resignation"]

1. g4 {[%clk 0:02:59.3]} 1... c5 {[%clk 0:03:00.3]} 2. Bg2 {[%clk 0:02:59.5]}
2... d5 {[%clk 0:03:01.4]} 3. c4 {[%clk 0:02:58.7]} 3... Nc6 {[%clk 0:03:03]} 4.
cxd5 {[%clk 0:02:59.3]} 4... Nb4 {[%clk 0:03:04.2]} 5. Nc3 {[%clk 0:02:55.8]}
5... Bxg4 {[%clk 0:03:04.4]} 6. a3 {[%clk 0:02:55.7]} 6... Na6 {[%clk
0:03:03.2]} 7. d6 {[%clk 0:02:54.7]} 7... Rb8 {[%clk 0:03:01.6]} 8. dxe7 {[%clk
0:02:36.4]} 8... Bxe7 {[%clk 0:03:01.5]} 9. Qa4+ {[%clk 0:02:35]} 9... Qd7
{[%clk 0:02:59.9]} 10. Qxd7+ {[%clk 0:02:34.3]} 10... Bxd7 {[%clk 0:02:59.7]}
11. Nf3 {[%clk 0:02:36.2]} 11... Nf6 {[%clk 0:03:00.2]} 12. Ne5 {[%clk
0:02:37.3]} 12... Be6 {[%clk 0:03:00.5]} 13. d3 {[%clk 0:02:37.9]} 13... O-O
{[%clk 0:03:01.4]} 14. Be3 {[%clk 0:02:38.7]} 14... Bd6 {[%clk 0:03:01.7]} 15.
Nc4 {[%clk 0:02:37.9]} 15... Bc7 {[%clk 0:03:01]} 16. Nb5 {[%clk 0:02:35.2]}
16... Bxc4 {[%clk 0:02:56.8]} 17. dxc4 {[%clk 0:02:35.2]} 17... Bd8 {[%clk
0:02:54]} 18. O-O-O {[%clk 0:02:35.1]} 18... Be7 {[%clk 0:02:54.3]} 19. Nxa7
{[%clk 0:02:32.8]} 19... b6 {[%clk 0:02:52]} 20. Nc6 {[%clk 0:02:25.9]} 20...
Rb7 {[%clk 0:02:46]} 21. Bf4 {[%clk 0:02:23.4]} 21... Re8 {[%clk 0:02:33]} 22.
Rd3 {[%clk 0:02:06.3]} 22... Nh5 {[%clk 0:02:31.6]} 23. Be3 {[%clk 0:01:49.3]}
23... Rc7 {[%clk 0:02:01.6]} 24. Rhd1 {[%clk 0:01:44.6]} 24... Nb8 {[%clk
0:02:00.3]} 25. Nxb8 {[%clk 0:01:37.2]} 25... Rxb8 {[%clk 0:02:01]} 26. Bf3
{[%clk 0:01:38.1]} 26... Nf6 {[%clk 0:01:54.2]} 27. Bf4 {[%clk 0:01:37.1]} 27...
Rd8 {[%clk 0:01:50.8]} 1-0

[Event "*** MasterClass Titled Tuesday Blitz"]
[Site "Chess.com"]
[Date "2017.12.05"]
[Round "1"]
[White "ArnaudovP"]
[Black "MasterBlitz83"]
[Result "1-0"]
[WhiteElo "2435"]
[BlackElo "1392"]
[TimeControl "180+2"]
[EndTime "14:19:52 PST"]
[Termination "ArnaudovP won by resignation"]

1. Nf3 {[%clk 0:03:00]} 1... Nf6 {[%clk 0:02:50.6]} 2. c4 {[%clk 0:02:54.5]}
2... g6 {[%clk 0:02:43.2]} 3. Nc3 {[%clk 0:02:53.4]} 3... Bg7 {[%clk 0:02:44.2]}
4. e4 {[%clk 0:02:54.9]} 4... d6 {[%clk 0:02:45]} 5. d4 {[%clk 0:02:56.2]} 5...
O-O {[%clk 0:02:45.6]} 6. h3 {[%clk 0:02:57.7]} 6... e5 {[%clk 0:02:44.2]} 7. d5
{[%clk 0:02:58.9]} 7... Na6 {[%clk 0:02:44.1]} 8. Be3 {[%clk 0:02:58.2]} 8...
Nc5 {[%clk 0:02:44.2]} 9. Nd2 {[%clk 0:02:59.3]} 9... c6 {[%clk 0:02:41.6]} 10.
Be2 {[%clk 0:03:00.5]} 10... cxd5 {[%clk 0:02:41.3]} 11. cxd5 {[%clk 0:03:01.1]}
11... Bd7 {[%clk 0:02:14.7]} 12. O-O {[%clk 0:02:58.4]} 12... Ne8 {[%clk
0:02:12.9]} 13. b4 {[%clk 0:02:56.5]} 13... Na6 {[%clk 0:02:10.3]} 14. Qb3
{[%clk 0:02:57.2]} 14... Nac7 {[%clk 0:02:10.3]} 15. b5 {[%clk 0:02:56.1]} 15...
Kh8 {[%clk 0:02:07.6]} 16. a4 {[%clk 0:02:55.8]} 16... f5 {[%clk 0:02:07.5]} 17.
f3 {[%clk 0:02:55.3]} 17... f4 {[%clk 0:02:06.3]} 18. Bf2 {[%clk 0:02:55.8]}
18... Nf6 {[%clk 0:02:07.8]} 19. a5 {[%clk 0:02:51.9]} 19... Nh5 {[%clk
0:02:06.4]} 20. b6 {[%clk 0:02:49.3]} 20... Na6 {[%clk 0:02:04.6]} 21. Bxa6
{[%clk 0:02:48.6]} 21... bxa6 {[%clk 0:02:05.7]} 22. b7 {[%clk 0:02:48.7]} 22...
Rb8 {[%clk 0:02:05.7]} 23. Rfb1 {[%clk 0:02:46.2]} 23... Qg5 {[%clk 0:01:54.8]}
24. Kh2 {[%clk 0:02:46.4]} 24... Ng3 {[%clk 0:01:54.6]} 25. Qc4 {[%clk
0:02:37.7]} 25... Bb5 {[%clk 0:01:38.4]} 26. Nxb5 {[%clk 0:02:35.6]} 26... axb5
{[%clk 0:01:39.3]} 27. Rxb5 {[%clk 0:02:36.5]} 27... a6 {[%clk 0:01:40.2]} 28.
Rb6 {[%clk 0:02:34.5]} 28... Rf7 {[%clk 0:01:39]} 29. Rab1 {[%clk 0:02:31.8]}
29... Bf8 {[%clk 0:01:28]} 30. Qxa6 {[%clk 0:02:30.3]} 30... Be7 {[%clk
0:01:27.8]} 31. Qc4 {[%clk 0:02:29.2]} 31... Rg7 {[%clk 0:01:26.3]} 32. a6
{[%clk 0:02:28.5]} 32... Bd8 {[%clk 0:01:22]} 33. a7 {[%clk 0:02:27.9]} 1-0

[Event "*** MasterClass Titled Tuesday Blitz"]
[Site "Chess.com"]
[Date "2017.12.05"]
[Round "1"]
[White "nurmiTV"]
[Black "HolyInquisitor0001"]
[Result "1-0"]
[WhiteElo "2474"]
[BlackElo "1642"]
[TimeControl "180+2"]
[EndTime "14:19:53 PST"]
[Termination "nurmiTV won by resignation"]

1. c4 {[%clk 0:02:39.8]} 1... e5 {[%clk 0:02:54.7]} 2. Nc3 {[%clk 0:02:39.8]}
2... Nf6 {[%clk 0:02:54]} 3. g3 {[%clk 0:02:40.2]} 3... Nc6 {[%clk 0:02:51.7]}
4. Bg2 {[%clk 0:02:41.1]} 4... Bb4 {[%clk 0:02:42]} 5. Nd5 {[%clk 0:02:40.5]}
5... Be7 {[%clk 0:02:28.6]} 6. e3 {[%clk 0:02:39.5]} 6... O-O {[%clk 0:02:21.3]}
7. Ne2 {[%clk 0:02:39.2]} 7... d6 {[%clk 0:02:18.8]} 8. O-O {[%clk 0:02:39.5]}
8... Nxd5 {[%clk 0:02:17.5]} 9. cxd5 {[%clk 0:02:40.2]} 9... Nb8 {[%clk
0:02:17.8]} 10. d4 {[%clk 0:02:41.3]} 10... c6 {[%clk 0:02:07.9]} 11. e4 {[%clk
0:02:35.7]} 11... cxd5 {[%clk 0:02:02.5]} 12. exd5 {[%clk 0:02:37.6]} 12... Nd7
{[%clk 0:02:01.5]} 13. Be3 {[%clk 0:02:26.7]} 13... Qa5 {[%clk 0:01:53.1]} 14.
a3 {[%clk 0:02:21.8]} 14... exd4 {[%clk 0:01:45.2]} 15. Nxd4 {[%clk 0:02:21.4]}
15... Bf6 {[%clk 0:01:45.1]} 16. b4 {[%clk 0:02:18.5]} 16... Qd8 {[%clk
0:01:39.1]} 17. Rc1 {[%clk 0:02:18.3]} 17... Re8 {[%clk 0:01:35.2]} 18. Nb5
{[%clk 0:02:17.4]} 18... Rf8 {[%clk 0:01:32.9]} 19. Nxd6 {[%clk 0:02:16.1]}
19... a6 {[%clk 0:01:25.7]} 20. Qd2 {[%clk 0:02:08.2]} 20... Ne5 {[%clk
0:01:21]} 21. Ne4 {[%clk 0:02:03.8]} 21... Bf5 {[%clk 0:01:12.7]} 22. Nxf6+
{[%clk 0:02:01.7]} 22... Qxf6 {[%clk 0:01:13.4]} 23. Bd4 {[%clk 0:02:01.3]}
23... Qd6 {[%clk 0:01:12.5]} 24. Qf4 {[%clk 0:01:59.6]} 1-0

[Event "*** MasterClass Titled Tuesday Blitz"]
[Site "Chess.com"]
[Date "2017.12.05"]
[Round "1"]
[White "sergiochess83"]
[Black "calemcc"]
[Result "1-0"]
[WhiteElo "2757"]
[BlackElo "2297"]
[TimeControl "180+2"]
[EndTime "14:20:06 PST"]
[Termination "sergiochess83 won by resignation"]

1. e4 {[%clk 0:03:01.8]} 1... e6 {[%clk 0:03:00.5]} 2. d4 {[%clk 0:03:02.1]}
2... d5 {[%clk 0:03:02.4]} 3. Nd2 {[%clk 0:03:03.4]} 3... Nc6 {[%clk 0:03:03.4]}
4. Ngf3 {[%clk 0:03:03.9]} 4... Nf6 {[%clk 0:03:04]} 5. e5 {[%clk 0:03:03.5]}
5... Nd7 {[%clk 0:03:05.5]} 6. Be2 {[%clk 0:03:05.1]} 6... f6 {[%clk 0:03:03.2]}
7. exf6 {[%clk 0:03:04.4]} 7... Nxf6 {[%clk 0:03:05.1]} 8. O-O {[%clk
0:03:02.8]} 8... Bd6 {[%clk 0:03:06.6]} 9. c4 {[%clk 0:03:00.3]} 9... O-O {[%clk
0:03:07]} 10. a3 {[%clk 0:03:01]} 10... b6 {[%clk 0:03:06.4]} 11. b4 {[%clk
0:03:01.8]} 11... Bb7 {[%clk 0:02:45.7]} 12. c5 {[%clk 0:03:00.3]} 12... bxc5
{[%clk 0:02:38.9]} 13. bxc5 {[%clk 0:03:00.9]} 13... Be7 {[%clk 0:02:37.8]} 14.
Rb1 {[%clk 0:03:02.5]} 14... Rb8 {[%clk 0:02:37.5]} 15. Re1 {[%clk 0:03:00.8]}
15... Qe8 {[%clk 0:02:29.8]} 16. Bb5 {[%clk 0:03:00.2]} 16... Qh5 {[%clk
0:02:28.1]} 17. h3 {[%clk 0:02:56.1]} 17... Nd8 {[%clk 0:02:16]} 18. Be2 {[%clk
0:02:50.8]} 18... Nc6 {[%clk 0:02:09.9]} 19. Ne5 {[%clk 0:02:46.2]} 19... Qf5
{[%clk 0:01:59.4]} 20. Rxb7 {[%clk 0:02:23.2]} 20... Rxb7 {[%clk 0:01:48.3]} 21.
Nxc6 {[%clk 0:02:23.6]} 21... Bd8 {[%clk 0:01:48.5]} 22. Ba6 {[%clk 0:02:16.8]}
22... Ne4 {[%clk 0:01:32.7]} 23. Nxe4 {[%clk 0:02:16]} 23... dxe4 {[%clk
0:01:32.3]} 24. Bxb7 {[%clk 0:02:15.2]} 24... Qxf2+ {[%clk 0:01:33.2]} 25. Kh1
{[%clk 0:02:16.4]} 25... Bh4 {[%clk 0:01:30.7]} 26. Rg1 {[%clk 0:02:16.1]} 26...
Bg3 {[%clk 0:01:20]} 27. Ne5 {[%clk 0:02:02.4]} 27... Rf6 {[%clk 0:01:05.2]} 28.
Ng4 {[%clk 0:02:02.7]} 1-0

[Event "*** MasterClass Titled Tuesday Blitz"]
[Site "Chess.com"]
[Date "2017.12.05"]
[Round "1"]
[White "dario91"]
[Black "pastouche06"]
[Result "0-1"]
[WhiteElo "802"]
[BlackElo "2340"]
[TimeControl "180+2"]
[EndTime "14:20:16 PST"]
[Termination "pastouche06 won by checkmate"]

1. e4 {[%clk 0:03:00.1]} 1... c6 {[%clk 0:02:55.9]} 2. e5 {[%clk 0:02:57.7]}
2... d5 {[%clk 0:02:56.3]} 3. d4 {[%clk 0:02:58.1]} 3... c5 {[%clk 0:02:56.4]}
4. dxc5 {[%clk 0:02:56.6]} 4... e6 {[%clk 0:02:57.1]} 5. Be3 {[%clk 0:02:51]}
5... Nh6 {[%clk 0:02:55.2]} 6. Bd4 {[%clk 0:02:46.6]} 6... Nf5 {[%clk
0:02:54.6]} 7. Bd3 {[%clk 0:02:42.4]} 7... Nxd4 {[%clk 0:02:54.4]} 8. Bxh7
{[%clk 0:02:36.8]} 8... Rxh7 {[%clk 0:02:51.3]} 9. Qxd4 {[%clk 0:02:36.7]} 9...
Nc6 {[%clk 0:02:52.4]} 10. Qa4 {[%clk 0:02:31.3]} 10... Bxc5 {[%clk 0:02:50.7]}
11. Nf3 {[%clk 0:02:28.3]} 11... Bd7 {[%clk 0:02:46.4]} 12. Qb3 {[%clk
0:02:27.6]} 12... Qb6 {[%clk 0:02:44.5]} 13. Qxb6 {[%clk 0:02:21.4]} 13... Bxb6
{[%clk 0:02:43.4]} 14. O-O {[%clk 0:02:21.2]} 14... Nd4 {[%clk 0:02:43.8]} 15.
Nxd4 {[%clk 0:02:21.2]} 15... Bxd4 {[%clk 0:02:45.7]} 16. c3 {[%clk 0:02:21.1]}
16... Bxe5 {[%clk 0:02:46.8]} 17. Na3 {[%clk 0:02:19.9]} 17... Bxh2+ {[%clk
0:02:46.5]} 18. Kh1 {[%clk 0:02:16.3]} 18... O-O-O {[%clk 0:02:43.7]} 19. g3
{[%clk 0:02:07.2]} 19... Bxg3+ {[%clk 0:02:44]} 20. Kg2 {[%clk 0:02:06.3]} 20...
Bd6 {[%clk 0:02:45.5]} 21. Rh1 {[%clk 0:02:05.3]} 21... Rdh8 {[%clk 0:02:46.3]}
22. Rxh7 {[%clk 0:02:05.6]} 22... Rxh7 {[%clk 0:02:48.2]} 23. Nc2 {[%clk
0:02:03.4]} 23... e5 {[%clk 0:02:46.2]} 24. Rd1 {[%clk 0:01:56.2]} 24... Bc6
{[%clk 0:02:46.4]} 25. Ne3 {[%clk 0:01:52.5]} 25... d4+ {[%clk 0:02:46.6]} 26.
Kf1 {[%clk 0:01:45.9]} 26... Rh1+ {[%clk 0:02:41.9]} 27. Ke2 {[%clk 0:01:42]}
27... dxe3 {[%clk 0:02:43.2]} 28. Rxh1 {[%clk 0:01:41.1]} 28... Bxh1 {[%clk
0:02:45.1]} 29. Kxe3 {[%clk 0:01:41.7]} 29... e4 {[%clk 0:02:46.1]} 30. f4
{[%clk 0:01:40.2]} 30... exf3 {[%clk 0:02:46.1]} 31. Kf2 {[%clk 0:01:38.5]}
31... Bc5+ {[%clk 0:02:46.1]} 32. Kf1 {[%clk 0:01:36.7]} 32... Bg2+ {[%clk
0:02:45]} 33. Ke1 {[%clk 0:01:34.3]} 33... Be3 {[%clk 0:02:46.9]} 34. a4 {[%clk
0:01:20.6]} 34... f2+ {[%clk 0:02:48.8]} 35. Ke2 {[%clk 0:01:20.2]} 35... Bb6
{[%clk 0:02:50.7]} 36. b4 {[%clk 0:01:18.8]} 36... f1=Q+ {[%clk 0:02:52.6]} 37.
Kd2 {[%clk 0:01:16.2]} 37... Bf3 {[%clk 0:02:53.6]} 38. Kc2 {[%clk 0:01:14.7]}
38... Qe2+ {[%clk 0:02:55]} 39. Kb3 {[%clk 0:01:15.4]} 39... Bd5+ {[%clk
0:02:56.6]} 40. c4 {[%clk 0:01:16.1]} 40... Qxc4+ {[%clk 0:02:55.4]} 41. Kb2
{[%clk 0:01:14.8]} 41... Bd4+ {[%clk 0:02:56.7]} 42. Kb1 {[%clk 0:01:14.7]}
42... Be4# {[%clk 0:02:56.3]} 0-1

[Event "*** MasterClass Titled Tuesday Blitz"]
[Site "Chess.com"]
[Date "2017.12.05"]
[Round "1"]
[White "HeatGirl"]
[Black "PulpanJ"]
[Result "0-1"]
[WhiteElo "1334"]
[BlackElo "2419"]
[TimeControl "180+2"]
[EndTime "14:20:27 PST"]
[Termination "PulpanJ won by resignation"]

1. Nf3 {[%clk 0:02:42.9]} 1... Nf6 {[%clk 0:02:29.3]} 2. g3 {[%clk 0:02:43]}
2... d5 {[%clk 0:02:28.2]} 3. Bg2 {[%clk 0:02:43.7]} 3... c6 {[%clk 0:02:28.3]}
4. d3 {[%clk 0:02:44.9]} 4... Bf5 {[%clk 0:02:30.2]} 5. Nbd2 {[%clk 0:02:45.9]}
5... e6 {[%clk 0:02:31.7]} 6. c3 {[%clk 0:02:47.5]} 6... h6 {[%clk 0:02:33.2]}
7. Qc2 {[%clk 0:02:49.4]} 7... Bh7 {[%clk 0:02:33.9]} 8. a4 {[%clk 0:02:50.9]}
8... Nbd7 {[%clk 0:02:35.8]} 9. O-O {[%clk 0:02:52.2]} 9... Be7 {[%clk
0:02:34.4]} 10. Re1 {[%clk 0:02:53.7]} 10... O-O {[%clk 0:02:35.4]} 11. e4
{[%clk 0:02:55.1]} 11... dxe4 {[%clk 0:02:15.1]} 12. dxe4 {[%clk 0:02:54.7]}
12... a5 {[%clk 0:02:17]} 13. Nc4 {[%clk 0:02:54.5]} 13... Nc5 {[%clk
0:02:16.3]} 14. Nfd2 {[%clk 0:02:48.3]} 14... b5 {[%clk 0:02:12.9]} 15. Ne3
{[%clk 0:02:40.2]} 15... Nxa4 {[%clk 0:02:07.5]} 16. Rxa4 {[%clk 0:02:35.6]}
16... bxa4 {[%clk 0:02:08.2]} 17. Qxa4 {[%clk 0:02:37.5]} 17... Qd7 {[%clk
0:02:08.8]} 18. Ndc4 {[%clk 0:02:36.4]} 18... c5 {[%clk 0:02:06.1]} 19. Qxd7
{[%clk 0:02:31.5]} 19... Nxd7 {[%clk 0:02:08]} 20. Rd1 {[%clk 0:02:33.4]} 20...
Rfd8 {[%clk 0:02:08]} 21. f4 {[%clk 0:02:30.3]} 21... Nf6 {[%clk 0:02:02.9]} 22.
e5 {[%clk 0:02:15.3]} 22... Rxd1+ {[%clk 0:02:00.5]} 23. Nxd1 {[%clk 0:02:15.7]}
23... Nd5 {[%clk 0:02:00.9]} 24. Be3 {[%clk 0:02:09.8]} 24... Nxe3 {[%clk
0:01:59.8]} 25. Ndxe3 {[%clk 0:02:06.7]} 25... Rb8 {[%clk 0:02:01.2]} 26. Kf2
{[%clk 0:02:02.8]} 26... g5 {[%clk 0:01:58.7]} 27. Bf1 {[%clk 0:01:52.5]} 27...
h5 {[%clk 0:01:57.8]} 28. Be2 {[%clk 0:01:49.8]} 28... h4 {[%clk 0:01:58.4]} 29.
Ke1 {[%clk 0:01:50.1]} 29... hxg3 {[%clk 0:01:49.7]} 30. hxg3 {[%clk 0:01:50.6]}
30... gxf4 {[%clk 0:01:51.6]} 31. gxf4 {[%clk 0:01:51.8]} 31... Bh4+ {[%clk
0:01:53.5]} 32. Kd2 {[%clk 0:01:52.2]} 32... Bg3 {[%clk 0:01:54.7]} 33. Ng2
{[%clk 0:01:47.2]} 33... Be4 {[%clk 0:01:53.4]} 0-1

[Event "*** MasterClass Titled Tuesday Blitz"]
[Site "Chess.com"]
[Date "2017.12.05"]
[Round "1"]
[White "sorito"]
[Black "hhbcd_grob_bes"]
[Result "1-0"]
[WhiteElo "2382"]
[BlackElo "1195"]
[TimeControl "180+2"]
[EndTime "14:20:29 PST"]
[Termination "sorito won by checkmate"]

1. d4 {[%clk 0:03:01.9]} 1... g6 {[%clk 0:02:59.1]} 2. Nf3 {[%clk 0:03:01.4]}
2... Bg7 {[%clk 0:02:56.1]} 3. Bf4 {[%clk 0:03:02.7]} 3... d6 {[%clk 0:02:56.4]}
4. e3 {[%clk 0:02:58.2]} 4... Nd7 {[%clk 0:02:57.5]} 5. h3 {[%clk 0:02:58.2]}
5... b6 {[%clk 0:02:58.3]} 6. c4 {[%clk 0:02:56.5]} 6... Bb7 {[%clk 0:02:59.7]}
7. Nc3 {[%clk 0:02:57.7]} 7... e6 {[%clk 0:03:00.2]} 8. Be2 {[%clk 0:02:58.9]}
8... Ne7 {[%clk 0:03:01.7]} 9. Bh2 {[%clk 0:03:00.2]} 9... c5 {[%clk 0:03:01.7]}
10. Rc1 {[%clk 0:03:00.2]} 10... Rc8 {[%clk 0:03:01.1]} 11. Bxd6 {[%clk
0:03:00.3]} 11... Nf5 {[%clk 0:02:59.6]} 12. Bf4 {[%clk 0:02:57.7]} 12... cxd4
{[%clk 0:03:00.5]} 13. exd4 {[%clk 0:02:58.4]} 13... Bxf3 {[%clk 0:02:58.2]} 14.
Bxf3 {[%clk 0:02:59]} 14... Bxd4 {[%clk 0:02:47.6]} 15. g4 {[%clk 0:02:54.7]}
15... Bxc3+ {[%clk 0:02:40.2]} 16. Rxc3 {[%clk 0:02:56.6]} 16... Ne7 {[%clk
0:02:30.1]} 17. Bb7 {[%clk 0:02:55.1]} 17... Rc5 {[%clk 0:02:24.8]} 18. b4
{[%clk 0:02:55.5]} 18... b5 {[%clk 0:02:03.8]} 19. bxc5 {[%clk 0:02:52.3]} 19...
Qa5 {[%clk 0:02:04.8]} 20. Bd2 {[%clk 0:02:52.9]} 20... Nxc5 {[%clk 0:02:04.1]}
21. Qf3 {[%clk 0:02:29.4]} 21... Qxa2 {[%clk 0:01:31.6]} 22. Bc6+ {[%clk
0:02:28.4]} 22... Kf8 {[%clk 0:01:29.3]} 23. Bh6+ {[%clk 0:02:24.9]} 23... Kg8
{[%clk 0:01:30.7]} 24. Qf6 {[%clk 0:02:14.2]} 24... Qb1+ {[%clk 0:01:06.8]} 25.
Ke2 {[%clk 0:02:15.2]} 25... Qb2+ {[%clk 0:01:07.1]} 26. Kf3 {[%clk 0:02:13]}
26... Qxc3+ {[%clk 0:00:38.3]} 27. Qxc3 {[%clk 0:02:13.6]} 27... Nf5 {[%clk
0:00:39.9]} 28. gxf5 {[%clk 0:02:14.5]} 28... e5 {[%clk 0:00:32.1]} 29. Qxe5
{[%clk 0:02:15.5]} 29... f6 {[%clk 0:00:32.2]} 30. Qe8# {[%clk 0:02:16]} 1-0

[Event "*** MasterClass Titled Tuesday Blitz"]
[Site "Chess.com"]
[Date "2017.12.05"]
[Round "1"]
[White "R2D3"]
[Black "DrVelja"]
[Result "1/2-1/2"]
[WhiteElo "1704"]
[BlackElo "2470"]
[TimeControl "180+2"]
[EndTime "14:20:32 PST"]
[Termination "Game drawn by repetition"]

1. e4 {[%clk 0:02:48.4]} 1... c5 {[%clk 0:03:01.1]} 2. Nf3 {[%clk 0:02:47.9]}
2... e6 {[%clk 0:03:02.6]} 3. Bc4 {[%clk 0:02:47.3]} 3... Nc6 {[%clk 0:03:02.6]}
4. d4 {[%clk 0:02:46.4]} 4... cxd4 {[%clk 0:02:59.1]} 5. Nxd4 {[%clk 0:02:48.3]}
5... Nf6 {[%clk 0:02:59]} 6. Nxc6 {[%clk 0:02:26.3]} 6... bxc6 {[%clk
0:02:59.2]} 7. Nc3 {[%clk 0:02:27.5]} 7... d5 {[%clk 0:02:59.6]} 8. exd5 {[%clk
0:02:28.1]} 8... cxd5 {[%clk 0:02:59.9]} 9. Bb3 {[%clk 0:02:29.5]} 9... Be7
{[%clk 0:02:56.3]} 10. O-O {[%clk 0:02:26.1]} 10... O-O {[%clk 0:02:57.8]} 11.
Bg5 {[%clk 0:02:26.9]} 11... a5 {[%clk 0:02:58.7]} 12. a4 {[%clk 0:02:27.3]}
12... Ba6 {[%clk 0:03:00]} 13. Re1 {[%clk 0:02:24]} 13... h6 {[%clk 0:02:59]}
14. Bh4 {[%clk 0:02:23.9]} 14... Rc8 {[%clk 0:03:00.1]} 15. Bg3 {[%clk
0:02:18.3]} 15... Bb4 {[%clk 0:03:00.1]} 16. Be5 {[%clk 0:02:15.7]} 16... Ne4
{[%clk 0:02:57.2]} 17. Nxe4 {[%clk 0:02:10.9]} 17... Bxe1 {[%clk 0:02:58.5]} 18.
Nd6 {[%clk 0:02:12]} 18... Bb4 {[%clk 0:02:45.6]} 19. Nxc8 {[%clk 0:02:11.4]}
19... Qxc8 {[%clk 0:02:47.5]} 20. c3 {[%clk 0:02:12.3]} 20... Be7 {[%clk
0:02:48.3]} 21. Qg4 {[%clk 0:01:59.3]} 21... f6 {[%clk 0:02:49.7]} 22. Bf4
{[%clk 0:01:48.6]} 22... Kh8 {[%clk 0:02:44.3]} 23. Bc2 {[%clk 0:01:41.3]} 23...
e5 {[%clk 0:02:42.5]} 24. Qg6 {[%clk 0:01:39.3]} 24... f5 {[%clk 0:02:16.6]} 25.
Bxh6 {[%clk 0:01:18.8]} 25... gxh6 {[%clk 0:01:25.1]} 26. Qxh6+ {[%clk
0:01:12.8]} 26... Kg8 {[%clk 0:01:26]} 27. Qg6+ {[%clk 0:01:14.3]} 27... Kh8
{[%clk 0:01:27.9]} 28. Qh6+ {[%clk 0:01:15.7]} 28... Kg8 {[%clk 0:01:29.8]} 29.
Qg6+ {[%clk 0:01:17.3]} 29... Kh8 {[%clk 0:01:31.4]} 30. Qh6+ {[%clk 0:01:18.9]}
30... Kg8 {[%clk 0:01:33.3]} 31. Qg6+ {[%clk 0:01:20.3]} 31... Kh8 {[%clk
0:01:35.2]} 32. Qh6+ {[%clk 0:01:21.7]} 32... Kg8 {[%clk 0:01:37.1]} 1/2-1/2

[Event "*** MasterClass Titled Tuesday Blitz"]
[Site "Chess.com"]
[Date "2017.12.05"]
[Round "1"]
[White "MultiWebCreation"]
[Black "walkingcreep"]
[Result "0-1"]
[WhiteElo "1344"]
[BlackElo "2424"]
[TimeControl "180+2"]
[EndTime "14:20:32 PST"]
[Termination "walkingcreep won by resignation"]

1. e4 {[%clk 0:03:00.1]} 1... c5 {[%clk 0:02:59.9]} 2. Nf3 {[%clk 0:03:00.6]}
2... e6 {[%clk 0:02:57]} 3. a4 {[%clk 0:02:59.7]} 3... Nc6 {[%clk 0:02:56.5]} 4.
c3 {[%clk 0:02:59.7]} 4... d5 {[%clk 0:02:54.5]} 5. exd5 {[%clk 0:02:53.7]} 5...
Qxd5 {[%clk 0:02:56.4]} 6. Be2 {[%clk 0:02:42]} 6... Nf6 {[%clk 0:02:52.2]} 7.
h3 {[%clk 0:02:38.6]} 7... Be7 {[%clk 0:02:51.4]} 8. O-O {[%clk 0:02:39.2]} 8...
O-O {[%clk 0:02:52.5]} 9. Re1 {[%clk 0:02:35]} 9... c4 {[%clk 0:02:44.4]} 10.
Na3 {[%clk 0:02:30.9]} 10... Na5 {[%clk 0:02:43.3]} 11. Nd4 {[%clk 0:02:23]}
11... e5 {[%clk 0:02:38]} 12. Ndc2 {[%clk 0:02:21.7]} 12... Bxa3 {[%clk
0:02:23.2]} 13. bxa3 {[%clk 0:02:19.2]} 13... Bf5 {[%clk 0:02:19.7]} 14. Nb4
{[%clk 0:02:18.5]} 14... Qd7 {[%clk 0:02:10.9]} 15. d3 {[%clk 0:02:15.8]} 15...
Rfd8 {[%clk 0:02:01.6]} 16. Bg5 {[%clk 0:02:14.4]} 16... cxd3 {[%clk 0:01:58.7]}
17. Bxf6 {[%clk 0:01:54]} 17... gxf6 {[%clk 0:01:56]} 18. Bf1 {[%clk 0:01:41.6]}
18... Nc4 {[%clk 0:01:52.5]} 19. g4 {[%clk 0:01:36.5]} 19... Bg6 {[%clk
0:01:51.5]} 20. Qb3 {[%clk 0:01:03.1]} 20... Rac8 {[%clk 0:01:32.8]} 21. Red1
{[%clk 0:00:59.6]} 21... e4 {[%clk 0:01:31.8]} 22. Rd2 {[%clk 0:00:51.7]} 22...
Nxd2 {[%clk 0:01:31.7]} 0-1

[Event "*** MasterClass Titled Tuesday Blitz"]
[Site "Chess.com"]
[Date "2017.12.05"]
[Round "1"]
[White "GameOverBro"]
[Black "Alexander_Moskalenko"]
[Result "0-1"]
[WhiteElo "2290"]
[BlackElo "2741"]
[TimeControl "180+2"]
[EndTime "14:20:57 PST"]
[Termination "Alexander_Moskalenko won by resignation"]

1. e4 {[%clk 0:03:01.2]} 1... c5 {[%clk 0:02:59.6]} 2. Ne2 {[%clk 0:03:02]} 2...
d6 {[%clk 0:03:00.7]} 3. g3 {[%clk 0:03:02.2]} 3... Nf6 {[%clk 0:03:01.5]} 4.
Bg2 {[%clk 0:03:03]} 4... g6 {[%clk 0:02:53.6]} 5. O-O {[%clk 0:03:03.1]} 5...
Bg7 {[%clk 0:02:53.8]} 6. c3 {[%clk 0:03:04.5]} 6... O-O {[%clk 0:02:50.7]} 7.
d4 {[%clk 0:03:05.4]} 7... Nbd7 {[%clk 0:02:51.4]} 8. b3 {[%clk 0:03:04.1]} 8...
Rb8 {[%clk 0:02:51.5]} 9. Bb2 {[%clk 0:03:02.4]} 9... b5 {[%clk 0:02:51.7]} 10.
Nd2 {[%clk 0:03:01.9]} 10... Bb7 {[%clk 0:02:53.1]} 11. Rc1 {[%clk 0:02:51.7]}
11... a5 {[%clk 0:02:51.9]} 12. h3 {[%clk 0:02:52.1]} 12... Qb6 {[%clk
0:02:23.8]} 13. Kh2 {[%clk 0:02:52]} 13... b4 {[%clk 0:02:13.2]} 14. Nc4 {[%clk
0:02:41.1]} 14... Qa7 {[%clk 0:02:13.6]} 15. d5 {[%clk 0:02:33.6]} 15... Ba6
{[%clk 0:02:09]} 16. cxb4 {[%clk 0:02:31.4]} 16... Bxc4 {[%clk 0:02:08.6]} 17.
Rxc4 {[%clk 0:02:23.3]} 17... axb4 {[%clk 0:02:09.7]} 18. Qd2 {[%clk 0:02:15.7]}
18... Qxa2 {[%clk 0:02:02.6]} 19. Qc2 {[%clk 0:02:00.7]} 19... Nb6 {[%clk
0:01:57.7]} 20. Ra1 {[%clk 0:01:59.5]} 20... Qxb2 {[%clk 0:01:58]} 21. Qxb2
{[%clk 0:01:57]} 21... Ng4+ {[%clk 0:01:59.3]} 22. hxg4 {[%clk 0:01:54.7]} 22...
Bxb2 {[%clk 0:02:01.2]} 23. Rb1 {[%clk 0:01:25.2]} 23... Nxc4 {[%clk 0:02:01.7]}
24. bxc4 {[%clk 0:01:27.1]} 24... Bc3 {[%clk 0:01:56.7]} 25. f4 {[%clk
0:01:25.4]} 25... Ra8 {[%clk 0:01:57.5]} 26. g5 {[%clk 0:01:24.8]} 26... Ra2
{[%clk 0:01:57]} 27. Bf3 {[%clk 0:01:25]} 27... Rb2 {[%clk 0:01:57.1]} 28. Rc1
{[%clk 0:01:23.6]} 28... Ra8 {[%clk 0:01:57.7]} 29. Kh3 {[%clk 0:01:22.6]} 29...
Ra3 {[%clk 0:01:56.7]} 30. Kg4 {[%clk 0:01:22.3]} 30... Kg7 {[%clk 0:01:55.8]}
31. Rd1 {[%clk 0:01:07.3]} 31... Rd2 {[%clk 0:01:46.1]} 32. Rc1 {[%clk
0:01:07.6]} 32... Ra1 {[%clk 0:01:41.1]} 0-1